bitfinex/quotes_ETHUSD_20250504
["timestamp","ask_amount","ask_price","bid_price","bid_amount"]
[1746337101961,6.03184781,1847.3,1847.1,0.20692991]
[1746337102318,5.41359896,1847.2,1847.1,0.20692991]
[1746337104561,5.41350684,1847.3,1847.1,0.20692991]
[1746337104967,5.41359896,1847.2,1847.1,0.20692991]
[1746337105256,5.41359896,1847.2,1846.8,0.8079]
[1746337105461,5.41359896,1847.2,1847.1,0.20740466]
[1746337105621,5.41359896,1847.2,1846.8,6.22263052]
[1746337105821,5.41359896,1847.2,1847.1,0.20740466]
[1746337106057,6.64247824,1847.2,1846.8,6.22263052]
[1746337106257,5.41359896,1847.2,1847.1,0.20740466]
[1746337106458,5.41408692,1847.1,1846.8,0.8079]
[1746337106762,5.41408692,1847.1,1846.7,4.40611231]
[1746337106763,5.41419115,1847.0,1846.7,4.40611231]
[1746337108055,5.41410327,1847.1,1846.7,9.82107582]
[1746337108250,10.82825465,1847.1,1846.7,12.01022539]
[1746337108567,5.41405606,1847.1,1846.7,6.59526188]
[1746337109280,10.82821613,1847.1,1846.7,12.01029897]
[1746337109449,5.41440675,1847.0,1846.8,0.20888491]
[1746337109980,10.82883416,1847.0,1846.8,0.20888491]
[1746337110184,5.41440675,1847.0,1846.8,0.20888491]
[1746337111194,10.82883375,1847.0,1846.8,0.20888491]
[1746337112076,5.41440675,1847.0,1846.8,0.20888491]
[1746337112448,5.41432556,1847.0,1846.8,0.20888491]
[1746337112950,5.41447831,1846.9,1846.8,0.20888491]
[1746337113151,5.41402351,1847.1,1846.8,0.20888491]
[1746337113376,6.03724586,1847.1,1846.8,0.20888491]
[1746337113563,5.41447831,1846.9,1846.8,0.20888491]
[1746337114849,5.41447831,1846.9,1846.6,4.672]
[1746337115048,5.41447831,1846.9,1846.8,0.20961294]
[1746337115283,5.41477149,1846.8,1846.7,0.21010646]
[1746337115469,5.41516229,1846.7,1846.4,3.59821231]
[1746337115986,10.83049094,1846.7,1846.4,3.59821231]
[1746337116149,5.41516229,1846.7,1846.4,3.59821231]
[1746337116341,6.23366229,1846.7,1846.4,3.59821231]
[1746337117366,5.41541471,1846.6,1846.4,3.59821231]
[1746337117782,6.23375392,1846.7,1846.4,3.59821231]
[1746337119993,6.23375392,1846.7,1846.3,12.46771799]
[1746337120288,6.23375392,1846.7,1846.3,14.29674678]
[1746337122288,5.41539252,1846.6,1846.3,8.88056231]
[1746337122505,5.41554815,1846.6,1846.3,4.667]
[1746337122804,5.41554815,1846.6,1846.2,5.41651505]
[1746337122963,10.83118181,1846.6,1846.1,11.37419504]
[1746337123305,5.41554815,1846.6,1846.2,5.4164753]
[1746337124404,5.41554815,1846.6,1846.3,0.21312597]
[1746337124599,6.23371723,1846.7,1846.3,7.20937738]
[1746337124600,5.41521723,1846.7,1846.3,7.20937738]
[1746337124803,5.41490426,1846.8,1846.4,6.24251043]
[1746337125096,6.57930034,1846.8,1846.5,0.21213855]
[1746337125295,5.4150813,1846.7,1846.5,0.21213855]
[1746337125506,6.57930034,1846.8,1846.5,0.21213855]
[1746337125868,1.16439608,1846.8,1846.5,0.21213855]
[1746337126122,6.2289839,1846.9,1846.5,7.20787751]
[1746337126270,5.41507438,1846.7,1846.5,0.21213855]
[1746337128009,6.22900468,1846.9,1846.5,0.21213855]
[1746337128010,5.41496457,1846.8,1846.5,0.21213855]
[1746337129408,10.82999902,1846.8,1846.5,0.21213855]
[1746337129578,5.41508311,1846.7,1846.5,0.21213855]
[1746337130418,6.57940447,1846.8,1846.5,0.21213855]
[1746337131316,5.41496457,1846.8,1846.5,0.21213855]
[1746337131515,10.82999539,1846.8,1846.5,0.21213855]
[1746337131683,5.41496457,1846.8,1846.5,0.21213855]
[1746337131893,10.82998724,1846.8,1846.5,0.21213855]
[1746337132217,5.41507214,1846.7,1846.5,0.21213855]
[1746337135087,10.83039503,1846.7,1846.5,0.21213855]
[1746337135303,5.41507214,1846.7,1846.5,0.21213855]
[1746337135992,10.83041865,1846.7,1846.5,0.21213855]
[1746337136626,5.41507214,1846.7,1846.5,0.21213855]
[1746337136926,5.41535795,1846.6,1846.5,0.21213855]
[1746337138129,5.41535795,1846.6,1846.3,1.58013352]
[1746337138345,5.41566469,1846.5,1846.4,0.21339215]
[1746337138638,5.41548756,1846.6,1846.4,0.21339215]
[1746337140432,10.83111857,1846.6,1846.4,0.21339215]
[1746337140729,5.41565123,1846.5,1846.4,0.21339215]
[1746337142059,5.41549159,1846.6,1846.4,0.21339215]
[1746337142453,5.41521047,1846.7,1846.4,0.21339215]
[1746337143543,6.17412064,1846.8,1846.4,0.21339215]
[1746337143734,5.41462489,1846.9,1846.5,6.23860786]
[1746337144048,5.41478513,1846.8,1846.6,0.2128165]
[1746337144245,5.41462489,1846.9,1846.6,0.2128165]
[1746337144459,5.41477355,1846.8,1846.6,0.2128165]
[1746337145941,5.41461699,1846.9,1846.6,0.2128165]
[1746337146327,10.82935814,1846.9,1846.6,0.2128165]
[1746337146527,6.16796471,1846.7,1846.6,0.2128165]
[1746337146768,5.41536764,1846.6,1846.3,2.40313352]
[1746337146927,5.41536764,1846.6,1846.4,0.21380382]
[1746337148359,5.41565123,1846.5,1846.4,0.21380382]
[1746337148531,5.41565123,1846.5,1846.2,3.59821231]
[1746337148871,5.41565123,1846.5,1846.3,0.21429755]
[1746337149827,5.41554363,1846.6,1846.3,0.21429755]
[1746337150966,5.41579583,1846.5,1846.3,0.21429755]
[1746337151470,5.41549729,1846.6,1846.3,0.21429755]
[1746337152070,5.41549729,1846.6,1846.4,0.8079]
[1746337152437,5.41549729,1846.6,1846.5,0.21331013]
[1746337153554,5.41513495,1846.7,1846.5,0.21331013]
[1746337153971,10.82994621,1846.8,1846.5,0.21331013]
[1746337154468,5.41492185,1846.8,1846.5,0.21331013]
[1746337155325,5.41508528,1846.7,1846.5,0.21331013]
[1746337158158,5.41496271,1846.8,1846.5,0.21331013]
[1746337158976,5.41509962,1846.7,1846.5,0.21331013]
[1746337160655,5.41495849,1846.8,1846.5,0.21331013]
[1746337161281,5.41460121,1846.9,1846.5,5.62879341]
[1746337161483,10.82935485,1846.9,1846.5,6.81404752]
[1746337161792,5.41479531,1846.8,1846.5,0.21331013]
[1746337162384,5.41466862,1846.9,1846.6,0.8143]
[1746337162544,5.41466862,1846.9,1846.7,0.21222793]
[1746337162746,5.41466862,1846.9,1846.6,0.8143]
[1746337163066,5.41466862,1846.9,1846.7,0.21222793]
[1746337163484,5.41477149,1846.8,1846.6,0.8143]
[1746337164141,5.41466986,1846.9,1846.6,0.8143]
[1746337167669,5.41435053,1847.0,1846.6,0.8143]
[1746337167861,5.41435053,1847.0,1846.6,6.22964326]
[1746337169184,5.41435053,1847.0,1846.7,0.21222793]
[1746337169488,5.41435053,1847.0,1846.6,6.22964326]
[1746337169787,5.41435053,1847.0,1846.7,0.21222793]
[1746337170000,5.41435053,1847.0,1846.6,6.22964326]
[1746337170150,5.41435053,1847.0,1846.7,0.21222793]
[1746337170350,5.41435053,1847.0,1846.6,6.22964326]
[1746337170553,5.41435053,1847.0,1846.7,0.21222793]
[1746337170761,5.41435053,1847.0,1846.6,6.22964326]
[1746337170964,5.41435053,1847.0,1846.7,0.21222793]
[1746337171164,5.41435053,1847.0,1846.6,7.55216286]
[1746337171382,5.41435053,1847.0,1846.7,0.21222793]
[1746337171703,5.41435053,1847.0,1846.6,7.55216286]
[1746337171916,5.41435053,1847.0,1846.8,0.21173441]
[1746337172079,5.41435053,1847.0,1846.7,0.21222793]
[1746337172281,5.41435053,1847.0,1846.9,0.21124094]
[1746337172519,5.41435053,1847.0,1846.8,0.21173441]
[1746337172804,5.41435053,1847.0,1846.9,0.21124094]
[1746337173002,5.41435053,1847.0,1846.6,6.22964326]
[1746337173208,5.41435053,1847.0,1846.7,0.21165793]
[1746337173381,5.41435053,1847.0,1846.6,6.22964326]
[1746337173586,5.41435053,1847.0,1846.7,0.21165793]
[1746337173900,5.41435053,1847.0,1846.6,6.22964326]
[1746337174104,5.41435053,1847.0,1846.8,0.21116441]
[1746337174280,5.41435053,1847.0,1846.7,0.21165793]
[1746337174482,5.41435053,1847.0,1846.9,0.21067094]
[1746337174995,5.41435053,1847.0,1846.6,6.22964326]
[1746337175174,5.41435053,1847.0,1846.7,0.21165793]
[1746337175499,5.41435053,1847.0,1846.6,7.55216286]
[1746337175806,5.41435053,1847.0,1846.7,0.21165793]
[1746337175971,5.41435053,1847.0,1846.6,7.55216286]
[1746337176162,5.41435053,1847.0,1846.7,0.21165793]
[1746337176367,5.41435053,1847.0,1846.6,6.22964326]
[1746337176567,5.41435053,1847.0,1846.7,0.21165793]
[1746337176908,10.82880064,1847.0,1846.6,7.55216286]
[1746337177106,10.82880064,1847.0,1846.8,0.21116441]
[1746337177282,10.82880064,1847.0,1846.7,0.21165793]
[1746337177606,5.41435053,1847.0,1846.8,0.21116441]
[1746337177793,10.82880611,1847.0,1846.6,7.58621702]
[1746337177980,10.82880611,1847.0,1846.7,0.21165793]
[1746337178180,10.82880611,1847.0,1846.6,8.34483872]
[1746337178393,5.41452914,1846.9,1846.7,0.21165793]
[1746337178592,5.41452914,1846.9,1846.6,2.92949546]
[1746337178811,5.41452914,1846.9,1846.7,0.21165793]
[1746337179018,5.41452914,1846.9,1846.6,2.92949546]
[1746337179219,5.41452914,1846.9,1846.7,0.21165793]
[1746337179426,5.41452914,1846.9,1846.6,2.92949546]
[1746337179630,5.41452914,1846.9,1846.7,0.21165793]
[1746337179800,5.41452914,1846.9,1846.6,2.17087376]
[1746337180000,5.41452914,1846.9,1846.7,0.21165793]
[1746337180200,5.41452914,1846.9,1846.6,2.17087376]
[1746337180401,5.41452914,1846.9,1846.7,0.21165793]
[1746337180587,5.41452914,1846.9,1846.6,2.17087376]
[1746337180797,5.41452914,1846.9,1846.7,0.21165793]
[1746337180999,5.41452914,1846.9,1846.6,2.17087376]
[1746337181197,5.41452914,1846.9,1846.7,0.21165793]
[1746337181397,5.41452914,1846.9,1846.6,2.17087376]
[1746337181597,5.41452914,1846.9,1846.7,0.21165793]
[1746337181798,5.41452914,1846.9,1846.6,2.17087376]
[1746337182106,5.41452914,1846.9,1846.7,0.21165793]
[1746337182408,5.41452914,1846.9,1846.6,3.47104626]
[1746337182718,5.41452914,1846.9,1846.7,0.21165793]
[1746337183093,5.41452914,1846.9,1846.6,3.47104626]
[1746337183304,5.41452914,1846.9,1846.8,0.21116441]
[1746337183508,5.41452914,1846.9,1846.7,0.21165793]
[1746337183724,5.41452914,1846.9,1846.8,0.21116441]
[1746337183929,6.1815418,1847.1,1846.8,0.21116441]
[1746337183930,5.41437131,1847.0,1846.8,0.21116441]
[1746337184135,5.41437131,1847.0,1846.6,7.58622538]
[1746337184439,10.82880532,1847.0,1846.6,8.34484792]
[1746337184610,5.41437131,1847.0,1846.7,0.21165793]
[1746337184809,5.41466013,1846.9,1846.6,2.9294963]
[1746337185138,5.41466013,1846.9,1846.7,0.21165793]
[1746337185496,5.41466013,1846.9,1846.6,2.9294963]
[1746337185795,5.41466013,1846.9,1846.7,0.21165793]
[1746337186034,5.41466013,1846.9,1846.6,2.9294963]
[1746337186236,5.41466013,1846.9,1846.7,0.21165793]
[1746337186739,5.41466013,1846.9,1846.6,2.9294963]
[1746337186939,5.41466013,1846.9,1846.8,0.21116441]
[1746337187100,5.41466013,1846.9,1846.7,0.21165793]
[1746337187301,5.41466013,1846.9,1846.8,0.21116441]
[1746337187639,5.41466013,1846.9,1846.6,2.17087376]
[1746337187841,5.41466013,1846.9,1846.8,0.21116441]
[1746337188005,5.41438096,1847.0,1846.7,0.21184793]
[1746337188212,10.82880067,1847.0,1846.6,8.34485111]
[1746337188410,10.82880067,1847.0,1846.7,0.21184793]
[1746337188628,5.41438096,1847.0,1846.6,8.34485111]
[1746337188833,5.41438096,1847.0,1846.7,0.21184793]
[1746337189030,5.41438096,1847.0,1846.6,8.34469238]
[1746337189200,10.82881187,1847.0,1846.7,0.21184793]
[1746337189400,10.82881187,1847.0,1846.6,8.34469238]
[1746337189718,10.82881187,1847.0,1846.7,0.21184793]
[1746337189893,5.41438096,1847.0,1846.7,0.21184793]
[1746337190098,5.41438096,1847.0,1846.6,8.34469238]
[1746337190399,10.828801,1847.0,1846.7,0.21184793]
[1746337190602,5.41438096,1847.0,1846.6,8.34469238]
[1746337190802,5.41438096,1847.0,1846.7,0.21184793]
[1746337191143,5.41438096,1847.0,1846.6,8.34469238]
[1746337191345,5.41438096,1847.0,1846.8,0.21135441]
[1746337191546,5.41438096,1847.0,1846.7,0.21184793]
[1746337191711,5.41438096,1847.0,1846.9,0.21086094]
[1746337191907,5.41438096,1847.0,1846.8,0.21135441]
[1746337192106,5.41438096,1847.0,1846.6,7.58605814]
[1746337192107,5.41438096,1847.0,1846.9,0.21086094]
[1746337192521,5.41438096,1847.0,1846.6,2.17087376]
[1746337192717,5.41438096,1847.0,1846.9,0.21086094]
[1746337192923,5.41447978,1846.9,1846.6,2.17087376]
[1746337193820,5.41447978,1846.9,1846.4,13.67602469]
[1746337193821,5.41550797,1846.6,1846.4,9.04901231]
[1746337194022,5.41526788,1846.7,1846.4,9.04901231]
[1746337194227,5.41526788,1846.7,1846.4,10.49553416]
[1746337194745,5.41526788,1846.7,1846.4,11.85210792]
[1746337196851,5.41526788,1846.7,1846.4,8.25389561]
[1746337199250,5.41526788,1846.7,1846.5,0.21283513]
[1746337199768,5.41535795,1846.6,1846.5,0.21283513]
[1746337200075,7.30102053,1846.6,1846.5,0.21283513]
[1746337200419,5.41594507,1846.4,1846.2,4.95478607]
[1746337200610,5.41594507,1846.4,1846.3,0.21382255]
[1746337200824,5.41535795,1846.6,1846.3,1.57039631]
[1746337201028,5.41518726,1846.7,1846.4,2.11627376]
[1746337201254,5.41539187,1846.6,1846.5,0.21283513]
[1746337201935,5.41585265,1846.5,1846.2,5.71448607]
[1746337202138,5.41585265,1846.5,1846.2,7.33353709]
[1746337202541,5.41585265,1846.5,1846.3,1.35657376]
[1746337210174,5.41550699,1846.6,1846.3,1.35657376]
[1746337210343,5.41520177,1846.7,1846.5,1.35657376]
[1746337210344,5.41524003,1846.7,1846.5,1.35657376]
[1746337210546,6.2175077,1846.8,1846.6,1.35657376]
[1746337210547,5.41497716,1846.8,1846.6,1.35657376]
[1746337210938,5.41497716,1846.8,1846.7,1.35657376]
[1746337212080,5.41465845,1846.9,1846.7,1.35657376]
[1746337212252,5.41465845,1846.9,1846.8,1.35657376]
[1746337213764,5.41465845,1846.9,1846.6,2.39557955]
[1746337214075,5.41465845,1846.9,1846.6,3.17669872]
[1746337214247,5.41465845,1846.9,1846.7,0.21191126]
[1746337214452,5.4143096,1847.0,1846.6,8.59203242]
[1746337214655,5.4143096,1847.0,1846.7,0.21191126]
[1746337214855,5.4143096,1847.0,1846.6,8.59203242]
[1746337215079,5.4143096,1847.0,1846.7,0.21191126]
[1746337215270,8.4165,1847.2,1846.7,0.21191126]
[1746337215271,0.7695,1847.2,1846.8,1.58247955]
[1746337215484,5.413898,1847.1,1846.8,2.36787955]
[1746337215639,5.413898,1847.1,1846.9,0.21032263]
[1746337219491,6.18320525,1847.2,1846.9,0.21032263]
[1746337222392,11.59707548,1847.2,1846.9,0.21032263]
[1746337222567,6.18320525,1847.2,1846.9,0.21032263]
[1746337223993,11.5970621,1847.2,1846.9,0.21032263]
[1746337224201,6.18320525,1847.2,1846.9,0.21032263]
[1746337224498,5.41389736,1847.1,1846.9,0.21032263]
[1746337224998,6.18326042,1847.2,1846.9,0.21032263]
[1746337225905,5.41389364,1847.1,1846.9,0.21032263]
[1746337226089,6.18328913,1847.2,1846.9,0.21032263]
[1746337232109,6.23338067,1847.3,1846.9,5.76011468]
[1746337232408,5.41360637,1847.2,1846.9,0.34566611]
[1746337233609,5.41360637,1847.2,1846.9,1.70187237]
[1746337237180,6.23338067,1847.3,1847.0,1.35620626]
[1746337237383,5.4136208,1847.2,1847.0,1.35620626]
[1746337237727,5.4136208,1847.2,1847.1,0.34453223]
[1746337238077,5.4136208,1847.2,1846.9,1.35620626]
[1746337238277,5.4136208,1847.2,1847.0,0.34503298]
[1746337240728,5.4136208,1847.2,1846.8,7.5561963]
[1746337240927,5.4136208,1847.2,1847.1,0.34453223]
[1746337241085,5.4136208,1847.2,1846.8,7.5561963]
[1746337241418,5.4136208,1847.2,1846.9,0.34553379]
[1746337248720,5.41418516,1847.0,1846.9,0.34553379]
[1746337249018,5.41458822,1846.9,1846.6,5.4193]
[1746337249207,5.41458822,1846.9,1846.6,6.63841156]
[1746337249388,5.41458822,1846.9,1846.6,7.99461782]
[1746337249911,5.41437332,1847.0,1846.6,13.4099504]
[1746337250419,6.19877115,1847.1,1846.7,6.77126645]
[1746337251944,5.41381045,1847.2,1846.7,0.05414708]
[1746337252240,5.41390528,1847.1,1846.8,2.13750626]
[1746337252407,5.41390528,1847.1,1846.8,0.7813]
[1746337256494,5.41377989,1847.2,1846.8,7.55223981]
[1746337258732,5.41377989,1847.2,1846.8,2.13750626]
[1746337258733,5.41359896,1847.2,1846.8,2.13750626]
[1746337258915,5.41392716,1847.1,1846.8,2.13750626]
[1746337259122,5.41392716,1847.1,1846.8,0.7813]
[1746337259432,5.41392716,1847.1,1846.9,0.34588202]
[1746337261441,5.41379058,1847.2,1846.9,0.34588202]
[1746337261620,5.41390759,1847.1,1846.9,0.34588202]
[1746337262647,5.41377199,1847.2,1846.9,0.34588202]
[1746337262852,5.41389812,1847.1,1846.9,0.34588202]
[1746337266558,5.41418516,1847.0,1846.9,0.34588202]
[1746337267048,10.82862333,1847.0,1846.6,5.74091857]
[1746337267243,5.41418516,1847.0,1846.9,0.34591369]
[1746337267448,5.41454138,1846.9,1846.6,5.74091857]
[1746337267665,5.41454138,1846.9,1846.6,7.97198524]
[1746337270344,5.41418516,1847.0,1846.6,13.38733374]
[1746337270543,10.82860904,1847.0,1846.6,12.03112748]
[1746337270763,5.41418516,1847.0,1846.6,4.37377293]
[1746337271060,5.41441944,1847.0,1846.6,4.37377293]
[1746337271416,10.828875,1847.0,1846.6,4.37377293]
[1746337272362,5.41453694,1846.9,1846.6,4.37377293]
[1746337272861,12.45953694,1846.9,1846.6,4.37377293]
[1746337273658,7.045,1846.9,1846.7,1.35620626]
[1746337273881,7.045,1846.9,1846.7,1.79358355]
[1746337274153,12.45947965,1846.9,1846.7,1.79358355]
[1746337274361,7.045,1846.9,1846.8,0.34641455]
[1746337275320,7.045,1846.9,1846.8,7.9377923]
[1746337275519,7.045,1846.9,1846.8,2.52302081]
[1746337276465,7.045,1846.9,1846.8,7.9377923]
[1746337277377,7.045,1846.9,1846.8,6.58158604]
[1746337277677,7.045,1846.9,1846.8,7.9377923]
[1746337277877,7.045,1846.9,1846.8,9.27305429]
[1746337278372,7.045,1846.9,1846.8,3.8582828]
[1746337280576,7.045,1846.9,1846.8,9.27305429]
[1746337281479,7.045,1846.9,1846.8,3.8582828]
[1746337282363,7.045,1846.9,1846.8,1.68167654]
[1746337282660,7.045,1846.9,1846.8,1.70262081]
[1746337287585,7.045,1846.9,1846.8,7.1173923]
[1746337287879,7.045,1846.9,1846.8,1.70262081]
[1746337292871,7.045,1846.9,1846.8,0.34641455]
[1746337296276,13.21877831,1846.9,1846.8,0.34641455]
[1746337296596,15.08207975,1846.9,1846.6,9.57641857]
[1746337296793,13.21877831,1846.9,1846.8,0.34638288]
[1746337296960,13.21877831,1846.9,1846.7,0.3468838]
[1746337297155,13.21877831,1846.9,1846.6,9.57641857]
[1746337297357,13.21877831,1846.9,1846.7,0.3468838]
[1746337297560,13.21877831,1846.9,1846.6,9.57641857]
[1746337297756,13.21877831,1846.9,1846.7,0.3468838]
[1746337297958,13.21877831,1846.9,1846.6,9.57641857]
[1746337298184,13.21877831,1846.9,1846.7,0.3468838]
[1746337298493,13.21877831,1846.9,1846.6,9.57641857]
[1746337299011,13.21877831,1846.9,1846.7,0.3468838]
[1746337299362,13.21877831,1846.9,1846.6,5.97820626]
[1746337299565,13.21877831,1846.9,1846.7,0.3468838]
[1746337299799,13.21877831,1846.9,1846.6,5.97820626]
[1746337299995,15.08207573,1846.9,1846.8,0.34638288]
[1746337300194,15.08207573,1846.9,1846.7,0.3468838]
[1746337300195,5.41477149,1846.8,1846.7,0.3468838]
[1746337300502,6.24694665,1846.7,1846.5,3.59821231]
[1746337301403,0.8318,1846.7,1846.5,3.59821231]
[1746337301702,5.41535795,1846.6,1846.5,3.59821231]
[1746337301888,6.24703809,1846.7,1846.5,3.59821231]
[1746337303406,6.24703809,1846.7,1846.4,1.35620626]
[1746337303701,6.24703809,1846.7,1846.4,2.97332969]
[1746337304408,6.24703809,1846.7,1846.5,0.34915235]
[1746337304572,6.24703809,1846.7,1846.5,1.70535861]
[1746337305472,5.41523809,1846.7,1846.5,1.70535861]
[1746337308112,5.41523809,1846.7,1846.5,0.34915235]
[1746337308813,6.24670035,1846.8,1846.5,0.34915235]
[1746337312022,11.66173683,1846.8,1846.5,0.34915235]
[1746337312501,6.24670035,1846.8,1846.5,0.34915235]
[1746337312685,5.41507114,1846.7,1846.5,0.34915235]
[1746337314294,5.41535795,1846.6,1846.5,1.34915235]
[1746337315220,5.41507114,1846.7,1846.5,1.34915235]
[1746337317530,5.41535795,1846.6,1846.5,1.34915235]
[1746337318290,5.41525438,1846.7,1846.5,1.34915235]
[1746337318490,10.83058964,1846.7,1846.5,1.34915235]
[1746337319016,5.41525438,1846.7,1846.5,1.34915235]
[1746337321731,5.41507213,1846.7,1846.5,1.34915235]
[1746337322750,10.82982687,1846.8,1846.5,1.34915235]
[1746337323031,5.41479678,1846.8,1846.5,1.34915235]
[1746337324435,5.41479678,1846.8,1846.5,2.10375235]
[1746337327137,10.82981257,1846.8,1846.5,2.10375235]
[1746337327493,5.41479678,1846.8,1846.5,2.10375235]
[1746337327896,5.4153001,1846.7,1846.5,2.10375235]
[1746337328101,5.4153001,1846.7,1846.5,1.34915235]
[1746337328703,10.83061703,1846.7,1846.5,1.34915235]
[1746337329030,5.4153001,1846.7,1846.5,1.34915235]
[1746337331364,11.58731483,1846.7,1846.5,1.34915235]
[1746337331555,6.1720001,1846.7,1846.5,1.34915235]
[1746337335967,5.4153001,1846.7,1846.5,1.34915235]
[1746337337886,10.8306499,1846.7,1846.5,1.34915235]
[1746337338061,5.4153001,1846.7,1846.5,1.34915235]
[1746337338969,5.41490143,1846.8,1846.5,1.34915235]
[1746337339684,5.41508954,1846.7,1846.5,1.34915235]
[1746337340293,5.41535795,1846.6,1846.5,1.34915235]
[1746337341062,5.415233,1846.7,1846.5,1.34915235]
[1746337341390,5.41488626,1846.8,1846.5,2.70535861]
[1746337341593,10.82994832,1846.8,1846.5,2.70535861]
[1746337342599,5.41488626,1846.8,1846.5,3.50165861]
[1746337343489,7.045,1846.9,1846.5,3.50165861]
[1746337343695,7.045,1846.9,1846.7,1.35620626]
[1746337344069,7.045,1846.9,1846.8,0.34780767]
[1746337344800,7.045,1846.9,1846.8,2.51581393]
[1746337348101,7.045,1846.9,1846.8,7.93058542]
[1746337348299,7.045,1846.9,1846.8,9.26512863]
[1746337352281,7.045,1846.9,1846.8,3.85035714]
[1746337358268,7.045,1846.9,1846.8,9.26512863]
[1746337358616,7.045,1846.9,1846.8,3.85035714]
[1746337358859,7.045,1846.9,1846.8,2.51581393]
[1746337359030,7.045,1846.9,1846.8,0.34780767]
[1746337359960,7.045,1846.9,1846.8,7.93648542]
[1746337360127,7.045,1846.9,1846.8,9.34683474]
[1746337360666,7.045,1846.9,1846.8,2.57585699]
[1746337360954,7.045,1846.9,1846.8,8.73557225]
[1746337361932,7.045,1846.9,1846.8,8.78971365]
[1746337362660,7.045,1846.9,1846.8,9.19431559]
[1746337362960,7.045,1846.9,1846.8,9.14017419]
[1746337365162,4.62402722,1846.9,1846.8,9.14017419]
[1746337370571,4.62402722,1846.9,1846.8,3.7254027]
[1746337370945,4.62402722,1846.9,1846.8,10.49638045]
[1746337371267,4.62402722,1846.9,1846.8,13.55052248]
[1746337371442,4.62402722,1846.9,1846.8,13.49638045]
[1746337372460,4.62402722,1846.9,1846.8,14.04638045]
[1746337374977,4.62402722,1846.9,1846.8,20.15638045]
[1746337375181,4.62402722,1846.9,1846.8,19.60638045]
[1746337375688,4.62402722,1846.9,1846.8,26.07498928]
[1746337378686,4.62402722,1846.9,1846.8,19.60638045]
[1746337379167,4.62402722,1846.9,1846.8,20.15638045]
[1746337381097,4.62402722,1846.9,1846.8,23.75459276]
[1746337384096,4.62402722,1846.9,1846.8,26.62262131]
[1746337384395,1.91335368,1846.9,1846.8,26.62262131]
[1746337385005,1.27255368,1846.9,1846.8,26.62262131]
[1746337385155,0.8221,1847.5,1847.2,5.41331004]
[1746337385376,0.8221,1847.5,1847.3,0.34141032]
[1746337385986,0.8221,1847.5,1847.3,5.7546581]
[1746337386526,0.8221,1847.5,1847.3,5.80864836]
[1746337386813,0.8221,1847.5,1847.3,5.75452253]
[1746337387015,0.7849,1847.6,1847.3,6.21786126]
[1746337387197,0.7849,1847.6,1847.3,7.57404748]
[1746337387396,0.7849,1847.6,1847.3,2.16095531]
[1746337387602,0.7849,1847.6,1847.3,0.75062319]
[1746337388014,0.7849,1847.6,1847.3,6.16377345]
[1746337389489,0.7849,1847.6,1847.3,0.75062319]
[1746337390416,6.81705302,1847.6,1847.3,0.75062319]
[1746337390983,0.7849,1847.4,1847.3,0.75062319]
[1746337391420,6.19791288,1847.4,1847.3,0.34141032]
[1746337391588,6.19791288,1847.4,1847.1,5.95220626]
[1746337391920,6.19791288,1847.4,1847.2,0.34162621]
[1746337394292,0.7849,1847.4,1847.2,0.34162621]
[1746337394722,6.19791555,1847.4,1847.2,0.34162621]
[1746337397388,7.35899726,1847.4,1847.2,0.34162621]
[1746337397641,0.7836,1847.3,1847.2,0.34162621]
[1746337401420,6.2018059,1847.3,1847.2,0.34162621]
[1746337401613,5.41370819,1847.2,1846.8,9.41764875]
[1746337401820,0.7885,1846.9,1846.8,4.00290254]
[1746337402319,0.7885,1846.9,1846.8,4.59381148]
[1746337403829,6.2253503,1847.1,1846.8,4.59381148]
[1746337404026,6.2253503,1847.1,1846.8,3.65244226]
[1746337405011,6.2253503,1847.1,1846.8,3.5983006]
[1746337407105,6.2253503,1847.1,1846.7,10.40742811]
[1746337409246,6.2253503,1847.1,1846.8,0.34451541]
[1746337410347,6.2253503,1847.1,1846.8,0.39865683]
[1746337410710,6.2253503,1847.1,1846.8,1.98110792]
[1746337410910,6.2253503,1847.1,1846.8,3.76144428]
[1746337411240,6.2253503,1847.1,1846.8,3.70730286]
[1746337411814,6.2253503,1847.1,1846.8,3.76144428]
[1746337413439,6.2253503,1847.1,1846.8,3.70730286]
[1746337417242,11.639501,1847.1,1846.8,3.70730286]
[1746337417541,6.2253503,1847.1,1846.8,3.70730286]
[1746337417747,6.2253503,1847.1,1846.8,2.12485177]
[1746337422251,6.2253503,1847.1,1846.8,0.34451541]
[1746337422550,5.41361047,1847.2,1846.9,0.8124]
[1746337422846,0.8063,1847.5,1847.2,5.41359481]
[1746337423051,5.41255179,1847.6,1847.3,0.34289773]
[1746337423218,6.1999641,1847.7,1847.3,6.331834]
[1746337423717,0.7877,1847.7,1847.4,0.8312]
[1746337424050,0.7877,1847.7,1847.5,0.34123195]
[1746337424433,6.19943567,1847.9,1847.5,1.69672934]
[1746337424762,5.41187981,1847.8,1847.5,0.34123195]
[1746337425162,6.1993584,1847.9,1847.5,0.34123195]
[1746337425716,6.1993584,1847.9,1847.5,5.7538417]
[1746337427051,6.1993584,1847.9,1847.5,0.34123195]
[1746337427253,6.1993584,1847.9,1847.5,5.80807259]
[1746337427448,6.1993584,1847.9,1847.5,6.20819675]
[1746337428047,6.1993584,1847.9,1847.5,7.07025074]
[1746337431122,5.4116584,1847.9,1847.5,7.07025074]
[1746337431518,6.19041515,1848.1,1847.6,5.4123684]
[1746337431751,6.19041515,1848.1,1847.7,6.22293259]
[1746337431951,6.19041515,1848.1,1847.7,1.77253317]
[1746337432125,6.19043464,1848.1,1847.7,1.77253317]
[1746337433457,6.19043464,1848.1,1847.7,7.18466431]
[1746337434725,6.19043464,1848.1,1847.7,1.77253317]
[1746337435656,6.19043464,1848.1,1847.7,7.18460886]
[1746337435856,6.19043464,1848.1,1847.8,0.71846089]
[1746337436054,6.19043464,1848.1,1847.9,0.33650922]
[1746337436255,6.19043464,1848.1,1847.8,0.71846089]
[1746337436556,6.19043464,1848.1,1847.9,0.33650922]
[1746337436948,6.19043464,1848.1,1847.7,1.43309326]
[1746337437150,6.19043464,1848.1,1848.0,0.33600895]
[1746337437350,6.19043464,1848.1,1847.7,1.43309326]
[1746337437553,6.19043464,1848.1,1848.0,0.33600895]
[1746337437731,6.19043464,1848.1,1847.7,1.43309326]
[1746337438066,5.4113087,1848.0,1847.8,0.33700954]
[1746337438432,6.19044867,1848.1,1847.8,0.33700954]
[1746337440260,5.41128867,1848.0,1847.8,0.33700954]
[1746337440460,0.7793,1848.1,1847.8,0.33700954]
[1746337440662,6.1904521,1848.1,1847.8,0.33700954]
[1746337441267,5.41126139,1848.0,1847.8,0.33700954]
[1746337441562,6.20844824,1847.9,1847.8,0.33700954]
[1746337441767,0.7969,1847.9,1847.8,0.33700954]
[1746337441950,0.7969,1847.9,1847.5,11.26266943]
[1746337442151,6.20852204,1847.9,1847.6,1.12626694]
[1746337442356,5.41162204,1847.9,1847.6,1.46427728]
[1746337442556,6.20834166,1848.0,1847.6,1.46427728]
[1746337443175,11.61983905,1848.0,1847.8,14.0]
[1746337443349,5.41154824,1847.9,1847.8,14.0]